bitfinex-derivatives/quotes_ETHF0:USTF0_20260204
["timestamp","ask_amount","ask_price","bid_price","bid_amount"]
[1770172194768,3.8942497,2260.9,2260.2,0.16855311]
[1770172195273,0.1497252,2260.8,2260.2,0.00419395]
[1770172196269,2.6012497,2260.9,2260.2,0.1593485]
[1770172196571,2.6012497,2261.0,2260.3,0.15515455]
[1770172197376,2.75010235,2261.0,2260.3,0.15515455]
[1770172198477,2.6012497,2261.0,2260.3,0.15515455]
[1770172198683,1.308,2260.9,2260.4,0.15515455]
[1770172198978,2.6012497,2261.1,2260.4,0.15515455]
[1770172199280,1.31,2261.0,2260.4,0.15515455]
[1770172200076,0.1486243,2260.9,2260.3,0.22152]
[1770172200577,0.1486243,2260.7,2259.6,2.80228876]
[1770172200782,0.1486243,2260.5,2259.6,0.15515455]
[1770172200980,2.6012497,2260.0,2259.0,0.15515455]
[1770172201285,3.9132497,2259.9,2259.0,0.15515455]
[1770172201585,1.46318981,2259.4,2258.3,3.93607709]
[1770172201773,3.9132497,2259.3,2258.4,0.16867447]
[1770172201979,1.312,2259.7,2258.9,0.16867447]
[1770172202179,2.6012497,2260.0,2258.9,0.16867447]
[1770172202382,2.6012497,2260.2,2259.0,0.16867447]
[1770172202583,1.313,2260.0,2259.0,0.17370589]
[1770172202980,2.60518846,2260.2,2259.0,0.17370589]
[1770172203181,2.60518846,2260.2,2259.1,0.16957973]
[1770172203182,1.313,2260.1,2259.1,0.16957973]
[1770172203582,1.314,2260.1,2259.1,0.16957973]
[1770172205287,0.00393876,2260.2,2259.3,0.17059977]
[1770172205580,0.00393876,2260.2,2259.6,0.17059977]
[1770172207385,2.6012497,2260.9,2259.6,0.17059977]
[1770172207587,2.6012497,2261.1,2259.8,0.16883254]
[1770172207781,1.314,2261.0,2260.0,0.16883254]
[1770172207979,1.314,2261.1,2260.2,0.16883254]
[1770172208388,1.31908319,2261.1,2260.2,0.16883254]
[1770172208890,0.00408319,2261.1,2260.3,0.16883254]
[1770172209383,0.00408319,2261.1,2260.3,0.39035254]
[1770172209589,0.00408319,2261.1,2260.4,0.16330055]
[1770172210688,0.01483103,2261.1,2260.1,0.16330055]
[1770172211299,1.31908319,2261.1,2260.1,0.16330055]
[1770172212187,0.00408319,2261.1,2260.1,0.16330055]
[1770172213289,0.00408319,2261.1,2260.3,0.16168064]
[1770172213489,0.00408319,2261.1,2260.4,0.16168064]
[1770172216491,0.00066407,2261.1,2260.6,0.16182908]
[1770172216694,2.6012497,2261.7,2260.7,0.16182908]
[1770172216888,1.32869077,2261.8,2260.7,0.16182908]
[1770172217294,1.32869077,2261.8,2260.8,0.16218177]
[1770172217697,1.33299294,2261.8,2260.8,0.16777558]
[1770172218493,0.01799294,2261.8,2260.8,0.16777558]
[1770172218693,0.01298539,2261.7,2260.8,0.16777558]
[1770172219095,1.32030217,2261.8,2260.8,0.16777558]
[1770172219898,0.00430217,2261.8,2261.1,0.16261635]
[1770172221196,0.01353498,2261.7,2261.0,0.22145]
[1770172221398,2.6012497,2261.3,2260.2,0.16187993]
[1770172221703,0.01353498,2261.1,2260.2,0.16187993]
[1770172221900,0.1559168,2260.9,2259.3,0.35875052]
[1770172222100,0.1559168,2260.9,2259.4,0.00559381]
[1770172222301,0.1559168,2260.9,2259.5,0.00559381]
[1770172222601,0.1559168,2260.9,2259.6,0.00559381]
[1770172222902,0.1559168,2260.9,2259.8,0.22157]
[1770172223296,2.6012497,2261.2,2259.9,0.22715381]
[1770172223501,1.0209168,2261.1,2259.9,0.22156]
[1770172224002,0.1559168,2261.0,2260.0,0.15189226]
[1770172224198,39.43273869,2261.5,2260.1,0.15189226]
[1770172224199,0.1559168,2261.3,2260.1,0.15189226]
[1770172224399,0.1559168,2261.1,2260.1,0.15189226]
[1770172225396,1.0209168,2261.3,2260.1,0.15748607]
[1770172225598,0.1559168,2261.5,2260.4,0.15189226]
[1770172225797,0.1559168,2261.5,2259.8,5.291]
[1770172225798,0.1559168,2261.5,2260.6,0.15189226]
[1770172225999,1.4729168,2261.7,2260.6,0.15189226]
[1770172226304,0.1559168,2261.6,2260.6,0.15189226]
[1770172227403,0.1559168,2261.6,2260.1,0.15189226]
[1770172227605,0.1559168,2261.4,2260.1,0.15189226]
[1770172228699,0.1559168,2261.2,2260.1,0.15189226]
[1770172229909,0.1559168,2261.2,2260.0,0.22155]
[1770172229910,1.318,2261.3,2260.3,0.15748607]
[1770172230204,0.1559168,2261.2,2260.3,0.15189226]
[1770172231603,2.6012497,2261.3,2260.3,0.15189226]
[1770172231808,2.6012497,2261.3,2260.3,0.15748607]
[1770172232106,2.7571665,2261.3,2260.3,0.15748607]
[1770172232308,2.6012497,2261.2,2260.3,0.15748607]
[1770172232703,2.6012497,2261.2,2260.4,0.00559381]
[1770172232904,2.7571665,2261.3,2260.5,0.00559381]
[1770172233207,0.1559168,2261.3,2260.6,0.15748607]
[1770172233407,2.6012497,2261.4,2260.6,0.15189226]
[1770172233704,1.4769168,2261.6,2260.6,0.15748607]
[1770172233907,1.4769168,2261.6,2260.6,0.15189226]
[1770172234409,3.9232497,2261.7,2260.9,0.15189226]
[1770172234599,4.0791665,2261.7,2260.9,0.15189226]
[1770172235408,2.6012497,2261.6,2260.9,0.15189226]
[1770172235803,2.6012497,2261.6,2260.9,0.15748607]
[1770172237006,2.6012497,2261.6,2261.0,0.00559381]
[1770172237207,2.6012497,2261.6,2261.0,0.01104013]
[1770172237704,40.69524549,2261.7,2261.3,0.00559381]
[1770172237705,2.6012497,2261.7,2261.3,0.00559381]
[1770172237905,2.76146867,2261.8,2261.2,0.00559381]
[1770172238308,2.76146867,2261.8,2261.3,0.00559381]
[1770172238605,2.76146867,2261.8,2261.2,0.00559381]
[1770172239004,2.76146867,2261.8,2261.3,0.00559381]
[1770172239210,2.76146867,2261.8,2261.2,0.00559381]
[1770172239706,2.76146867,2261.8,2261.3,0.00559381]
[1770172239907,2.76146867,2261.8,2261.2,0.00559381]
[1770172240212,0.1559168,2261.7,2261.0,0.00544632]
[1770172240412,0.1559168,2261.6,2261.0,0.01104013]
[1770172240612,2.6012497,2261.7,2261.1,0.00559381]
[1770172240912,2.76146867,2261.8,2261.2,0.00559381]
[1770172241308,0.1559168,2261.7,2261.3,0.00559381]
[1770172241608,0.1559168,2261.7,2261.2,0.00559381]
[1770172241809,0.1559168,2261.7,2261.3,0.00559381]
[1770172242313,0.1559168,2261.7,2261.4,0.00559381]
[1770172242513,2.60555187,2261.8,2261.3,0.15748607]
[1770172242713,2.60555187,2261.8,2261.3,0.15189226]
[1770172242912,2.76146867,2261.8,2261.3,0.15189226]
[1770172243113,0.1559168,2261.7,2261.3,0.00559381]
[1770172243614,0.1559168,2261.7,2261.0,0.00544632]
[1770172243814,0.1559168,2261.7,2260.6,0.15189226]
[1770172243815,2.6012497,2261.3,2260.6,0.15189226]
[1770172244314,0.1559168,2261.2,2260.4,0.15189226]
[1770172244715,0.1559168,2261.2,2260.4,0.15472084]
[1770172246214,2.6012497,2261.3,2260.6,0.15189226]
[1770172246615,2.6012497,2261.5,2260.7,0.15189226]
[1770172247816,2.6012497,2261.6,2260.8,0.15189226]
[1770172248016,3.9822497,2261.6,2260.8,0.15189226]
[1770172248617,0.1559168,2261.5,2260.8,0.15189226]
[1770172250221,3.9862497,2261.6,2260.8,0.15189226]
[1770172252321,2.6012497,2261.5,2260.8,0.15189226]
[1770172255022,2.6012497,2261.4,2260.5,0.16415625]
[1770172255223,0.15270406,2261.2,2260.4,0.00282858]
[1770172255418,2.75395376,2261.2,2260.4,0.00282858]
[1770172255726,0.16231353,2260.8,2260.2,0.22153]
[1770172256025,0.16231353,2260.8,2260.1,0.16293338]
[1770172256228,0.16231353,2260.7,2259.9,0.16293338]
[1770172256422,2.6012497,2260.8,2260.0,0.16293338]
[1770172256719,1.408,2260.9,2260.1,0.16293338]
[1770172257117,1.57031353,2260.9,2260.1,0.16293338]
[1770172258221,1.408,2260.9,2260.1,0.16293338]
[1770172258526,2.6012497,2261.0,2260.1,0.16293338]
[1770172258725,1.41,2260.9,2260.1,0.16293338]
[1770172260428,2.6012497,2261.0,2260.1,0.16293338]
[1770172260726,2.6012497,2261.1,2260.4,0.16293338]
[1770172260921,4.17556323,2261.3,2260.4,0.16293338]
[1770172261128,2.6012497,2261.4,2260.6,0.16293338]
[1770172261323,2.76356323,2261.6,2260.7,0.16293338]
[1770172261727,0.16231353,2261.5,2260.7,0.16293338]
[1770172262525,2.6012497,2261.6,2260.7,0.16293338]
[1770172262727,2.76356323,2261.6,2260.7,0.16293338]
[1770172263630,2.76356323,2261.6,2260.8,0.16293338]
[1770172264728,2.76356323,2261.6,2260.7,0.22149]
[1770172264729,41.81688056,2261.8,2261.0,0.16293338]
[1770172264934,2.6012497,2262.1,2261.3,0.16293338]
[1770172265233,0.16231353,2262.2,2261.3,0.16293338]
[1770172265430,2.6012497,2262.3,2261.3,0.16293338]
[1770172265826,2.6012497,2262.3,2261.5,0.16293338]
[1770172266033,0.16231353,2262.2,2261.5,0.16293338]
[1770172267337,0.16231353,2262.0,2261.3,0.00334986]
[1770172267535,0.16231353,2261.9,2261.3,0.00334986]
[1770172268737,1.58531353,2261.9,2261.3,0.00334986]
[1770172268936,0.16231353,2261.8,2260.9,0.16293338]
[1770172269831,0.16231353,2261.8,2260.9,0.16388569]
[1770172270035,0.16231353,2261.8,2260.9,0.00095231]
[1770172271235,0.16231353,2261.6,2260.9,0.00095231]
[1770172274947,2.76356323,2261.5,2260.3,0.22152]
[1770172275145,0.16231353,2261.3,2260.3,0.22152]
[1770172275545,0.16231353,2261.1,2260.0,0.16293338]
[1770172275739,0.16231353,2261.0,2260.0,0.16293338]
[1770172275945,0.16231353,2260.8,2260.0,0.16293338]
[1770172276143,0.16231353,2260.8,2259.8,0.16293338]
[1770172279343,0.16231353,2260.7,2259.8,0.16293338]
[1770172279538,0.16570949,2260.7,2259.8,0.16293338]
[1770172280645,0.16570949,2260.7,2260.0,0.15922281]
[1770172280646,0.00339596,2260.7,2260.0,0.15922281]
[1770172281749,2.6012497,2261.2,2260.1,0.15922281]
[1770172282049,4.19397955,2261.2,2260.1,0.15922281]
[1770172282247,4.19397955,2261.2,2259.7,7.0723848]
[1770172282248,2.76497955,2261.0,2259.8,0.15922281]
[1770172282448,0.16372985,2260.8,2259.8,0.15922281]
[1770172282648,1.59272985,2260.9,2259.9,0.15922281]
[1770172282847,1.59738124,2260.9,2259.9,0.16261877]
[1770172284050,0.16838124,2260.9,2260.0,0.15922281]
[1770172284449,0.00465139,2260.9,2260.3,0.15922281]
[1770172286148,2.76185323,2261.6,2260.5,0.15922281]
[1770172286447,0.16060353,2261.5,2260.5,0.15922281]
[1770172286845,0.16060353,2261.4,2260.5,0.15922281]
[1770172287151,0.16615106,2261.4,2260.5,0.15922281]
[1770172287749,0.00554753,2261.4,2260.6,0.15922281]
[1770172290555,0.00554753,2261.4,2260.8,0.15922281]
[1770172290954,0.16631412,2261.9,2261.0,0.15922281]
[1770172291852,0.0046448,2261.9,2261.3,0.15922281]
[1770172292148,2.62637605,2262.4,2261.5,0.38062281]
[1770172292349,0.16631412,2262.5,2261.5,0.2214]
[1770172292554,0.16631412,2262.4,2261.6,0.15922281]
[1770172293154,0.17094731,2262.4,2261.6,0.16361263]
[1770172295355,0.17094731,2262.4,2261.6,0.00438982]
[1770172295556,0.16631412,2262.3,2261.1,0.15922281]
[1770172295754,0.16631412,2262.0,2260.9,1.08646]
[1770172295950,0.16631412,2262.0,2260.9,1.24568281]
[1770172296157,0.16631412,2261.9,2260.9,1.08646]
[1770172296456,0.16631412,2261.9,2260.9,0.22504239]
[1770172296852,0.16631412,2261.9,2260.9,0.3842652]
[1770172297057,0.16631412,2261.9,2261.0,0.15922281]
[1770172305464,0.16631412,2261.7,2260.9,0.00358239]
[1770172305662,0.16631412,2261.7,2260.6,0.15922281]
[1770172305663,0.16631412,2261.5,2260.4,1.08651]
[1770172305863,0.16631412,2261.5,2260.4,1.24573281]
[1770172306162,0.16631412,2261.4,2260.4,0.22151]
[1770172306765,0.16631412,2261.4,2260.4,0.2269224]
[1770172307365,0.16631412,2261.4,2260.5,0.15922281]
[1770172307766,1.60431412,2261.3,2260.5,0.15922281]
[1770172308464,0.16631412,2261.2,2260.5,0.15922281]
[1770172308767,2.79269017,2261.5,2260.5,0.15922281]
[1770172308964,2.62637605,2261.6,2260.6,0.15922281]
[1770172309270,0.16631412,2261.8,2260.7,0.15922281]
[1770172310270,2.79269017,2261.8,2260.7,0.15922281]
[1770172310968,2.79269017,2261.8,2260.8,0.1630899]
[1770172311568,0.16438202,2261.7,2260.8,0.1630899]
[1770172311771,2.62637605,2261.8,2260.8,0.1630899]
[1770172312071,4.22975807,2261.9,2260.8,0.1630899]
[1770172312273,2.62637605,2261.8,2260.9,0.1630899]
[1770172312871,4.22975807,2261.9,2260.9,0.1630899]
[1770172313269,2.79075807,2261.8,2260.9,0.1630899]
[1770172313762,2.79075807,2261.8,2260.7,0.1630899]
[1770172313763,0.16438202,2261.7,2260.7,0.1630899]
[1770172313966,0.16438202,2261.7,2260.5,0.865]
[1770172313967,0.16438202,2261.6,2260.5,1.0280899]
[1770172314167,0.16438202,2261.4,2260.5,1.0280899]
[1770172315269,0.16438202,2261.3,2260.4,0.0054124]
[1770172315668,0.16438202,2261.3,2260.4,0.15960651]
[1770172316170,2.62637605,2261.4,2260.5,0.15419411]
[1770172316370,2.78189304,2261.4,2260.5,0.15419411]
[1770172316570,0.15551699,2261.3,2260.5,0.15419411]
[1770172317070,2.62637605,2261.4,2260.5,0.15419411]
[1770172317671,2.62637605,2261.4,2260.6,0.15419411]
[1770172318171,2.78189304,2261.4,2260.6,0.15419411]
[1770172319269,2.62637605,2261.4,2260.6,0.15419411]
[1770172319974,2.62637605,2261.5,2260.7,0.15419411]
[1770172320568,0.15551699,2261.4,2260.6,0.2215]
[1770172322575,0.15551699,2261.4,2260.7,0.15419411]
[1770172322775,2.62637605,2261.7,2260.8,0.15419411]
[1770172323674,6.33590285,2262.1,2261.1,0.15419411]
[1770172323675,2.78189304,2262.0,2261.1,0.15419411]
[1770172323874,2.78189304,2261.9,2261.1,0.15419411]
[1770172324074,0.15551699,2261.8,2261.1,0.15419411]
[1770172324476,2.78189304,2261.9,2261.1,0.15419411]
[1770172325479,0.15551699,2261.8,2261.1,0.15419411]
[1770172325879,0.15551699,2261.7,2260.9,0.15419411]
[1770172326078,0.15551699,2261.6,2260.9,0.15419411]
[1770172327171,0.15551699,2261.6,2260.6,3.5052407]
[1770172327379,0.15551699,2261.6,2260.7,0.15419411]
[1770172328475,0.15551699,2261.6,2260.6,1.08649]
[1770172328476,0.15551699,2261.5,2260.6,1.08649]
[1770172328773,0.15551699,2261.4,2260.6,0.22149]
[1770172328979,0.15551699,2261.4,2260.5,0.15419411]
[1770172329178,0.15551699,2261.3,2260.5,0.15419411]
[1770172331080,0.15551699,2261.2,2260.5,0.15419411]
[1770172331281,0.15551699,2261.2,2260.4,0.0054124]
[1770172332478,0.15551699,2261.2,2260.4,0.15960651]
[1770172332988,2.62637605,2261.3,2260.5,0.15419411]
[1770172333181,2.52637605,2261.3,2260.5,0.15419411]
[1770172334576,0.15551699,2261.2,2260.5,0.15419411]
[1770172334885,0.15551699,2261.2,2260.4,2.8671731]
[1770172335086,0.15551699,2261.1,2260.4,0.0054124]
[1770172335985,0.15551699,2260.9,2260.4,0.0054124]
[1770172336184,0.15551699,2260.9,2259.9,2.6402407]
[1770172336379,0.15551699,2260.6,2259.6,4.426]
[1770172336578,0.15551699,2260.4,2259.6,4.426]
[1770172337179,0.1609234,2260.4,2259.6,4.43085507]
[1770172337583,0.00540641,2260.4,2259.7,0.15419411]
[1770172338579,0.00540641,2260.4,2259.9,0.15419411]
[1770172340484,10.76190285,2261.3,2259.8,0.22157]
[1770172340485,0.15551699,2261.1,2260.1,0.22154]
[1770172340690,0.15551699,2261.1,2260.2,0.15765509]
[1770172341490,0.16053699,2261.1,2260.2,0.15765509]
[1770172346382,0.16537231,2261.0,2260.2,0.15765509]
[1770172346587,0.16537231,2261.0,2260.1,0.22154]
[1770172347993,0.16537231,2260.9,2260.1,0.22154]
[1770172348494,0.16537231,2260.9,2260.0,0.15765509]
[1770172348890,0.16537231,2260.9,2259.8,1.02265509]
[1770172349789,0.16537231,2260.9,2259.9,0.15765509]
[1770172349984,1.475,2260.8,2259.9,0.15765509]
[1770172350293,1.64037231,2260.8,2259.9,0.15765509]
[1770172351189,39.21132869,2261.0,2259.9,0.15765509]
[1770172351488,0.16537231,2261.0,2259.9,0.15765509]
[1770172351893,0.16537231,2260.9,2259.9,0.15765509]
[1770172352192,0.16537231,2260.9,2260.1,0.15765509]
[1770172352992,40.68732869,2261.0,2260.1,0.15765509]
[1770172353290,40.852701,2261.0,2260.1,0.15765509]
[1770172353690,39.21132869,2261.0,2260.1,0.15765509]
[1770172353887,40.69834869,2261.1,2260.1,0.15765509]
[1770172354087,0.16537231,2261.0,2260.1,0.15765509]
[1770172355492,0.16537231,2261.0,2260.0,0.22155]
[1770172356193,0.16537231,2261.0,2260.0,0.37920509]
[1770172356493,0.16537231,2260.9,2260.0,0.37920509]
[1770172356892,0.16537231,2260.9,2260.0,0.15765509]
[1770172357392,0.16537231,2260.8,2259.8,0.15765509]
[1770172358393,39.376701,2260.8,2259.8,0.15765509]
[1770172358790,39.21132869,2260.8,2259.8,0.15765509]
[1770172359091,40.862701,2260.8,2259.8,0.15765509]
[1770172359291,0.16537231,2260.7,2259.8,0.15765509]
[1770172362289,39.376701,2260.7,2259.8,0.15765509]
[1770172363292,0.16537231,2260.6,2259.6,2.64871922]
[1770172363493,0.16537231,2260.6,2259.6,0.16251016]
[1770172364193,0.16537231,2260.5,2259.7,0.15765509]
[1770172364794,39.21132869,2260.6,2259.7,0.15765509]
[1770172364992,5.39715306,2260.8,2259.8,0.15765509]
[1770172364993,40.70632869,2260.7,2259.8,0.15765509]
[1770172366391,40.871701,2260.7,2259.8,0.15765509]
[1770172367490,0.16537231,2260.5,2259.8,0.15765509]
[1770172367694,0.16537231,2260.5,2259.7,0.22158]
[1770172368091,0.16537231,2260.4,2259.6,0.00485507]
[1770172368296,0.16537231,2260.2,2259.6,0.00485507]
[1770172370294,39.376701,2260.4,2259.6,0.16251016]
[1770172370492,1.516,2260.3,2259.6,0.16251016]
[1770172370697,1.67128253,2260.3,2259.6,0.16251016]
[1770172370897,0.15528253,2260.3,2259.6,0.16251016]
[1770172371097,1.67428253,2260.3,2259.6,0.16251016]
[1770172371496,0.15528253,2260.2,2259.6,0.00485507]
[1770172372095,1.523,2260.4,2259.6,0.1733422]
[1770172372397,1.67828253,2260.4,2259.6,0.1733422]
[1770172372594,1.67928253,2260.4,2259.6,0.1733422]
[1770172373300,0.15528253,2260.3,2259.6,0.00485507]
[1770172373505,0.22153,2260.3,2259.3,0.49859427]
[1770172373798,39.21132869,2260.0,2259.0,0.16856149]
[1770172373993,40.73932869,2259.9,2259.0,0.16856149]
[1770172374199,40.73932869,2259.9,2258.7,0.16848713]
[1770172374398,43.64732869,2259.8,2258.3,0.16848713]
[1770172374694,39.21132869,2259.3,2258.3,0.17389354]
[1770172375000,1.531,2259.2,2258.3,0.17389354]
[1770172375601,0.0036475,2259.1,2258.3,0.17389354]
[1770172375797,1.531,2259.2,2258.3,0.17389354]
[1770172376297,0.0036475,2259.1,2258.3,0.17389354]
[1770172376803,1.532,2259.2,2258.3,0.17389354]
[1770172377400,0.0036475,2259.1,2258.3,0.00540641]
[1770172378006,0.0036475,2259.1,2258.3,0.17264621]
[1770172379710,2.07016153,2258.8,2257.0,3.93607709]
[1770172379906,2.07016153,2257.1,2256.4,17.01082877]
[1770172380106,4.65716131,2257.0,2256.1,0.16846691]
[1770172380304,5.23178075,2257.8,2256.3,0.17025433]
[1770172380305,39.21132869,2257.7,2256.3,0.17025433]
[1770172380506,3.7929621,2257.6,2256.3,0.17025433]
[1770172380711,3.7929621,2257.5,2256.3,0.17534771]
[1770172380912,3.7929621,2257.5,2256.5,0.17025433]
[1770172381109,3.7929621,2257.5,2256.3,0.00509338]
[1770172381110,3.7929621,2257.5,2256.6,0.17025433]
[1770172381311,0.86980413,2257.6,2256.6,0.17025433]
[1770172381609,3.78317521,2257.5,2256.3,0.00509338]
[1770172381806,5.85333674,2257.4,2256.3,0.00509338]
[1770172382005,0.00195047,2257.2,2256.3,0.00509338]
[1770172382210,41.28149022,2257.4,2256.3,0.00509338]
[1770172382211,0.00195047,2257.0,2256.3,0.00509338]
[1770172382406,0.00195047,2257.3,2256.3,4.82073084]
[1770172382607,0.00480413,2257.6,2256.6,0.16749168]
[1770172382814,0.0067546,2257.6,2256.6,0.16749168]
[1770172383110,0.00195047,2257.5,2256.6,4.81563746]
[1770172383414,0.00195047,2257.4,2256.3,0.17258506]
[1770172384908,0.00195047,2257.4,2256.4,0.16801943]
[1770172385114,0.86795047,2257.4,2256.5,0.16801943]
[1770172385304,0.866,2257.4,2256.6,0.16801943]
[1770172385612,0.00089495,2257.5,2256.3,0.17311281]
[1770172386309,0.00089495,2257.5,2256.3,0.00509338]
[1770172386514,3.75564512,2257.4,2256.3,0.00509338]
[1770172386713,0.87080413,2257.6,2256.3,0.00509338]
[1770172386910,3.75545158,2257.5,2256.3,0.00509338]
[1770172387117,5.82561311,2257.4,2256.3,0.00509338]
[1770172387417,2.07016153,2256.6,2255.1,0.16923589]
[1770172387609,0.866,2256.5,2255.1,0.16923589]
[1770172387811,4.431,2256.7,2255.3,0.16923589]
[1770172388014,4.431,2256.7,2255.7,4.81600897]
[1770172388214,0.866,2257.0,2255.8,4.81600897]
[1770172388512,0.00120743,2257.3,2255.9,0.16786319]
[1770172388719,0.86720743,2257.3,2256.2,0.16786319]
[1770172389114,0.1,2257.4,2256.4,0.16786319]
[1770172389319,0.1,2257.4,2256.7,0.16786319]
[1770172389617,0.1,2257.4,2256.3,0.16786319]
[1770172389917,0.1,2257.4,2256.5,0.16786319]
[1770172390319,0.1,2257.4,2256.6,4.64814578]
[1770172390818,0.1,2257.4,2256.7,4.64814578]
[1770172391011,0.1,2257.4,2256.6,4.64814578]
[1770172391214,0.1,2257.4,2256.5,0.16786319]
[1770172391612,0.1,2257.4,2256.0,0.16995206]
[1770172391821,0.1,2257.4,2256.2,0.16995206]
[1770172392020,0.1,2257.4,2256.3,0.16995206]
[1770172392218,0.1,2257.4,2256.4,0.16954915]
[1770172392818,0.1,2257.4,2255.3,2.07016153]
[1770172392819,4.433,2258.7,2257.2,0.16954915]
[1770172393018,0.866,2258.3,2256.9,0.16954915]
[1770172393411,0.866,2258.3,2257.4,9.11891109]
[1770172393817,2.07016153,2257.6,2256.4,0.16954915]
[1770172394023,7.20829468,2258.3,2254.2,6.64392225]
[1770172394024,2.07016153,2257.2,2255.8,0.1686154]
[1770172394222,0.866,2257.1,2255.8,0.1686154]
[1770172394423,2.07016153,2256.8,2255.2,4.433]
[1770172394623,2.07016153,2256.8,2255.3,0.1686154]
[1770172394922,5.299,2256.7,2255.5,0.1686154]
[1770172395120,5.30386188,2256.7,2255.5,0.1686154]
[1770172395322,2.07016153,2256.4,2255.2,0.1686154]
[1770172395918,0.866,2256.3,2255.4,4.81676118]
[1770172396117,0.00486188,2256.7,2255.1,0.39122571]
[1770172396118,0.866,2256.2,2255.1,0.39122571]
[1770172396322,5.299,2256.1,2254.7,0.16919571]
[1770172396516,2.59384352,2256.7,2255.1,0.16919571]
[1770172396720,9.04713206,2256.6,2255.1,0.16919571]
[1770172396920,5.299,2256.6,2255.1,0.16919571]
[1770172397423,5.299,2256.6,2255.2,0.16919571]
[1770172397723,0.00486188,2256.7,2255.2,0.16919571]
[1770172397922,2.07016153,2256.4,2255.2,0.16919571]
[1770172398324,5.3,2256.3,2255.2,0.16919571]
[1770172399122,5.3,2256.3,2254.9,0.16897658]
[1770172399327,5.974,2256.2,2254.9,0.16897658]
[1770172399723,2.07016153,2255.6,2254.3,0.16897658]
[1770172399928,0.915,2255.5,2254.3,0.16897658]
[1770172400129,2.07016153,2255.2,2254.1,0.16902612]
[1770172400320,2.07016153,2254.4,2253.9,0.21716457]
[1770172400527,0.0042254,2254.4,2253.4,0.2222]
[1770172400832,0.15450459,2255.3,2253.6,0.22218]
[1770172401024,0.867,2254.9,2253.6,0.22218]
[1770172401224,0.15450459,2254.8,2253.6,0.22218]
[1770172401426,0.15450459,2254.8,2253.2,0.22222]
[1770172401629,0.867,2254.7,2253.5,4.64814578]
[1770172401825,0.15450459,2254.6,2253.3,4.87035578]
[1770172402031,0.15450459,2254.6,2253.5,0.0042254]
[1770172402229,1.02150459,2254.6,2253.5,0.0042254]
[1770172402427,0.15450459,2254.5,2253.5,0.16420314]
[1770172402631,0.00519877,2254.7,2253.9,4.80812352]
[1770172403132,0.87219877,2254.7,2254.1,4.64814578]
[1770172403327,0.15450459,2254.6,2254.0,4.64814578]
[1770172403633,0.15450459,2254.6,2253.6,0.15997774]
[1770172404037,0.00519877,2254.7,2254.0,4.80812352]
[1770172404233,0.00519877,2254.7,2254.0,0.15997774]
[1770172404528,0.00519877,2254.7,2254.1,4.64814578]
[1770172404926,0.00519877,2254.7,2254.2,4.80812352]
[1770172405130,0.15970336,2254.7,2253.9,0.15997774]
[1770172405634,0.15970336,2254.7,2254.1,4.64814578]
[1770172405829,0.15450459,2255.3,2254.2,0.15997774]
[1770172406326,1.02150459,2255.3,2254.3,4.64814578]
[1770172406633,0.867,2255.5,2254.5,4.80812352]
[1770172406827,0.15450459,2255.4,2254.3,0.22211]
[1770172407026,0.15450459,2255.4,2254.3,4.87025578]
[1770172407230,0.15450459,2255.4,2254.4,4.80812352]
[1770172407428,0.15450459,2255.4,2254.5,5.03021352]
[1770172407633,0.00397156,2255.5,2254.8,0.15997774]
[1770172407829,0.15450459,2256.0,2255.0,4.64814578]
[1770172408026,0.15450459,2255.8,2254.9,0.15997774]
[1770172408529,0.15450459,2255.8,2255.0,4.64814578]
[1770172408734,0.15888792,2255.8,2255.0,4.64814578]
[1770172408930,1.54338333,2255.8,2255.1,4.64814578]
[1770172409135,0.00438333,2255.8,2255.1,4.65171598]
[1770172409331,7.02788099,2256.3,2255.4,4.80812352]
[1770172409637,3.97621057,2256.2,2255.2,4.64814578]
[1770172409833,3.82170598,2256.1,2255.2,4.64814578]
[1770172410129,3.82170598,2256.1,2255.4,4.64814578]
[1770172410435,3.82602018,2256.1,2255.5,4.64814578]
[1770172410733,40.75132869,2256.4,2255.9,4.64814578]
[1770172410734,2.59088099,2256.4,2255.9,4.64814578]
[1770172411039,41.95671427,2256.9,2255.9,0.15997774]
[1770172411236,3.82036231,2256.8,2256.1,4.64814578]
[1770172411432,3.82036231,2256.7,2256.0,0.15997774]
[1770172411737,0.00442996,2256.7,2256.2,4.64814578]
[1770172411936,0.00442996,2256.7,2256.3,4.64814578]
[1770172412328,0.00442996,2256.7,2256.4,4.64814578]
[1770172412529,4.29038558,2256.9,2256.3,4.64814578]
[1770172412734,3.82356426,2256.8,2256.2,4.64814578]
[1770172413034,1.546,2256.9,2256.2,4.64814578]
[1770172413234,4.13688099,2256.9,2256.3,4.64814578]
[1770172413434,3.82782243,2256.8,2256.2,4.64814578]
[1770172413831,3.82782243,2256.8,2256.4,4.64814578]
[1770172414028,3.82782243,2256.8,2256.3,4.64814578]
[1770172414434,3.82782243,2256.8,2256.4,4.64814578]
[1770172414633,3.82782243,2256.8,2256.3,4.64814578]
[1770172415036,3.82782243,2256.8,2256.4,4.64814578]
[1770172415236,3.82782243,2256.8,2256.0,0.15997774]
[1770172415237,3.82782243,2256.8,2256.3,4.64814578]
[1770172415737,3.82782243,2256.8,2256.4,4.64814578]
[1770172415937,3.82782243,2256.8,2256.3,4.64814578]
[1770172416339,3.98232702,2256.8,2256.3,4.63036672]
[1770172416639,3.82782243,2256.7,2256.4,4.63036672]
[1770172416840,4.14144146,2256.9,2256.2,4.63036672]
[1770172417034,3.83473065,2256.8,2256.2,4.63036672]
[1770172417234,3.83473065,2256.7,2256.3,4.63036672]
[1770172417435,0.15450459,2256.5,2255.7,0.15997774]
[1770172417637,3.81962875,2256.4,2255.7,0.15997774]
[1770172417940,3.97402619,2256.3,2255.8,4.63036672]
[1770172418143,0.15450459,2256.3,2255.6,4.63036672]
[1770172418435,0.15450459,2256.3,2255.7,4.63036672]
[1770172418634,2.59088099,2256.5,2255.7,4.63036672]
[1770172418835,1.571,2256.3,2255.8,4.63036672]
[1770172419030,1.571,2256.3,2255.7,4.63036672]
[1770172419238,1.572,2256.4,2256.0,4.63036672]
[1770172419438,3.82314748,2256.3,2256.1,4.63036672]
[1770172419740,1.573,2256.4,2256.1,4.63036672]
[1770172419934,3.82361592,2256.3,2256.2,4.63036672]
[1770172420139,3.82361592,2256.3,2256.1,4.63036672]
[1770172420338,1.575,2256.4,2256.1,4.63036672]
[1770172420541,3.82470727,2256.3,2256.2,4.63036672]
[1770172420844,2.59088099,2256.5,2256.2,4.63036672]
[1770172420845,1.58,2256.5,2256.2,4.63036672]
[1770172421042,1.58,2256.5,2256.3,4.63036672]
[1770172421243,1.58,2256.5,2256.1,4.63036672]
[1770172421636,1.58,2256.5,2256.3,4.63036672]
[1770172421840,1.58,2256.5,2256.1,4.63036672]
[1770172422335,1.58,2256.5,2256.3,4.63036672]
[1770172422543,1.58,2256.5,2256.1,4.63036672]
[1770172423042,1.58,2256.5,2256.3,4.63036672]
[1770172423243,1.58,2256.5,2256.1,4.63036672]